fUST/lending_fUST_20260530
["ID","MTS","AMOUNT","RATE_DAILY","PERIOD"]
[423398124,1780084248000,-606.57,0.00014013,2]
[423398122,1780084248000,-500.0,0.00014013,2]
[423398137,1780084248000,-678.0,0.00014112,2]
[423398117,1780084248000,-500.0,0.00014013,2]
[423398119,1780084248000,-654.99,0.00014013,2]
[423398134,1780084248000,-500.0,0.00014112,2]
[423398130,1780084248000,-500.0,0.00014111,2]
[423398144,1780084248000,-767.15540412,0.0001423,2]
[423398132,1780084248000,-500.0,0.00014111,2]
[423398140,1780084248000,-236.313726,0.00014141,2]
[423398157,1780084248000,-1164.9,0.00014285,2]
[423398145,1780084248000,-160.0,0.0001423,2]
[423398151,1780084248000,-500.0,0.00014284,2]
[423398147,1780084248000,-1190.19,0.00014284,2]
[423398150,1780084248000,-500.0,0.00014284,2]
[423398148,1780084248000,-500.0,0.00014284,2]
[423398153,1780084248000,-733.76,0.00014284,2]
[423398152,1780084248000,-500.0,0.00014284,2]
[423398149,1780084248000,-501.53,0.00014284,2]
[423398155,1780084248000,-610.55,0.00014285,2]
[423398163,1780084248000,-1517.97,0.00014285,2]
[423398156,1780084248000,-1353.93,0.00014285,2]
[423398166,1780084248000,-1798.09,0.00014285,2]
[423398158,1780084248000,-500.0,0.00014285,2]
[423398115,1780084248000,-500.0,0.00014013,2]
[423398146,1780084248000,-672.48,0.00014284,2]
[423398128,1780084248000,-500.0,0.00014111,2]
[423398056,1780084248000,-500.0,0.00013838,2]
[423398114,1780084248000,-2345.73,0.00014013,2]
[423398154,1780084248000,-583.62,0.00014284,2]
[423398059,1780084248000,-678.0,0.00013838,2]
[423398058,1780084248000,-500.0,0.00013838,2]
[423398061,1780084248000,-672.48,0.0001401,2]
[423398064,1780084248000,-1190.19,0.0001401,2]
[423398073,1780084248000,-500.0,0.0001401,2]
[423398075,1780084248000,-733.76,0.0001401,2]
[423398081,1780084248000,-1353.93,0.00014011,2]
[423398083,1780084248000,-1164.9,0.00014011,2]
[423398068,1780084248000,-501.53,0.0001401,2]
[423398079,1780084248000,-500.0,0.00014011,2]
[423398077,1780084248000,-583.62,0.0001401,2]
[423398069,1780084248000,-500.0,0.0001401,2]
[423398071,1780084248000,-500.0,0.0001401,2]
[423398084,1780084248000,-500.0,0.00014011,2]
[423398086,1780084248000,-910.32,0.00014011,2]
[423398090,1780084248000,-743.79,0.00014011,2]
[423398088,1780084248000,-652.43,0.00014011,2]
[423398092,1780084248000,-677.48,0.00014011,2]
[423398094,1780084248000,-1517.97,0.00014011,2]
[423398096,1780084248000,-1401.86,0.00014011,2]
[423398098,1780084248000,-11644.4,0.00014011,2]
[423398100,1780084248000,-1798.09,0.00014011,2]
[423398108,1780084248000,-1811.41,0.00014013,2]
[423398102,1780084248000,-507.97,0.00014013,2]
[423398110,1780084248000,-500.0,0.00014013,2]
[423398104,1780084248000,-500.0,0.00014013,2]
[423398112,1780084248000,-786.17,0.00014013,2]
[423398106,1780084248000,-1224.6738,0.00014013,2]
[423398126,1780084248000,-153.28562773,0.00014045,2]
[423398159,1780084248000,-910.32,0.00014285,2]
[423398066,1780084248000,-500.0,0.0001401,2]
[423398160,1780084248000,-652.43,0.00014285,2]
[423398206,1780084248000,-652.43,0.00014559,2]
[423398202,1780084248000,-1164.9,0.00014559,2]
[423398205,1780084248000,-910.32,0.00014559,2]
[423398204,1780084248000,-500.0,0.00014559,2]
[423398193,1780084248000,-1190.19,0.00014558,2]
[423398201,1780084248000,-1353.93,0.00014559,2]
[423398198,1780084248000,-500.0,0.00014558,2]
[423398199,1780084248000,-733.76,0.00014558,2]
[423398208,1780084248000,-677.48,0.00014559,2]
[423398220,1780084248000,-2345.73,0.00014561,2]
[423398218,1780084248000,-500.0,0.00014561,2]
[423398219,1780084248000,-786.17,0.00014561,2]
[423398207,1780084248000,-743.79,0.00014559,2]
[423398210,1780084248000,-1401.86,0.00014559,2]
[423398214,1780084248000,-507.97,0.00014561,2]
[423398217,1780084248000,-1811.41,0.00014561,2]
[423398216,1780084248000,-1224.6738,0.00014561,2]
[423398209,1780084248000,-1517.97,0.00014559,2]
[423398212,1780084248000,-11644.4,0.00014559,2]
[423398215,1780084248000,-500.0,0.00014561,2]
[423398213,1780084248000,-1798.09,0.00014559,2]
[423398221,1780084248000,-500.0,0.00014561,2]
[423398226,1780084248000,-151.09,0.000146,2]
[423398225,1780084248000,-606.57,0.00014561,2]
[423398227,1780084248000,-233.15858,0.00014658,2]
[423398228,1780084248000,-500.0,0.00014659,2]
[423398223,1780084248000,-654.99,0.00014561,2]
[423398222,1780084248000,-500.0,0.00014561,2]
[423398161,1780084248000,-743.79,0.00014285,2]
[423398200,1780084248000,-583.62,0.00014558,2]
[423398196,1780084248000,-500.0,0.00014558,2]
[423398224,1780084248000,-500.0,0.00014561,2]
[423398197,1780084248000,-500.0,0.00014558,2]
[423398195,1780084248000,-501.53,0.00014558,2]
[423398165,1780084248000,-11644.4,0.00014285,2]
[423398162,1780084248000,-677.48,0.00014285,2]
[423398167,1780084248000,-507.97,0.00014287,2]
[423398170,1780084248000,-1811.41,0.00014287,2]
[423398171,1780084248000,-500.0,0.00014287,2]
[423398172,1780084248000,-786.17,0.00014287,2]
[423398169,1780084248000,-1224.6738,0.00014287,2]
[423398174,1780084248000,-500.0,0.00014287,2]
[423398176,1780084248000,-654.99,0.00014287,2]
[423398177,1780084248000,-500.0,0.00014287,2]
[423398178,1780084248000,-606.57,0.00014287,2]
[423398168,1780084248000,-500.0,0.00014287,2]
[423398175,1780084248000,-500.0,0.00014287,2]
[423398173,1780084248000,-2345.73,0.00014287,2]
[423398164,1780084248000,-1401.86,0.00014285,2]
[423398181,1780084248000,-500.0,0.00014385,2]
[423398179,1780084248000,-500.0,0.00014385,2]
[423398190,1780084248000,-716.15257786,0.000145,2]
[423398186,1780084248000,-742.65009385,0.000144,2]
[423398188,1780084248000,-864.0,0.00014438,2]
[423398187,1780084248000,-716.15257786,0.000144,2]
[423398185,1780084248000,-293.10526316,0.00014389,2]
[423398192,1780084248000,-672.48,0.00014558,2]
[423398182,1780084248000,-500.0,0.00014386,2]
[423398191,1780084248000,-600.0,0.00014528,2]
[423398189,1780084248000,-742.65009385,0.000145,2]
[423398194,1780084248000,-500.0,0.00014558,2]
[423398184,1780084248000,-678.0,0.00014386,2]
[423398183,1780084248000,-500.0,0.00014386,2]
[423398180,1780084248000,-500.0,0.00014385,2]
[423398262,1780084249000,-1353.93,0.00014833,2]
[423398286,1780084249000,-554.175127,0.00014835,2]
[423398268,1780084249000,-677.48,0.00014833,2]
[423398267,1780084249000,-743.79,0.00014833,2]
[423398272,1780084249000,-1798.09,0.00014833,2]
[423398270,1780084249000,-1401.86,0.00014833,2]
[423398273,1780084249000,-507.97,0.00014835,2]
[423398269,1780084249000,-1517.97,0.00014833,2]
[423398285,1780084249000,-554.175127,0.00014835,2]
[423398275,1780084249000,-1224.6738,0.00014835,2]
[423398274,1780084249000,-453.65,0.00014835,2]
[423398271,1780084249000,-11644.4,0.00014833,2]
[423398281,1780084249000,-151.0,0.00014835,2]
[423398277,1780084249000,-2162.807714,0.00014835,2]
[423398284,1780084249000,-1811.41,0.00014835,2]
[423398282,1780084249000,-151.0,0.00014835,2]
[423398279,1780084249000,-2162.807714,0.00014835,2]
[423398278,1780084249000,-151.0,0.00014835,2]
[423398280,1780084249000,-2162.807714,0.00014835,2]
[423398283,1780084249000,-252.330116,0.00014835,2]
[423398288,1780084249000,-554.175127,0.00014835,2]
[423398287,1780084249000,-435.96,0.00014835,2]
[423398291,1780084249000,-2345.73,0.00014835,2]
[423398289,1780084249000,-554.175127,0.00014835,2]
[423398290,1780084249000,-786.17,0.00014835,2]
[423398261,1780084249000,-583.62,0.00014832,2]
[423398276,1780084249000,-2162.807714,0.00014835,2]
[423398253,1780084249000,-672.48,0.00014832,2]
[423398241,1780084249000,-284.10424388,0.00014758,2]
[423398260,1780084249000,-733.76,0.00014832,2]
[423398292,1780084249000,-623.61210271,0.00014835,2]
[423398230,1780084249000,-151.0,0.00014659,2]
[423398233,1780084249000,-500.0,0.00014659,2]
[423398229,1780084249000,-500.0,0.00014659,2]
[423398231,1780084249000,-151.0,0.00014659,2]
[423398234,1780084249000,-500.0,0.0001466,2]
[423398232,1780084249000,-151.0,0.00014659,2]
[423398236,1780084249000,-2978.27073837,0.00014666,2]
[423398235,1780084249000,-678.0,0.0001466,2]
[423398249,1780084249000,-151.0,0.00014783,2]
[423398250,1780084249000,-537.6845,0.00014783,2]
[423398247,1780084249000,-195.3431892,0.00014783,2]
[423398246,1780084249000,-500.0,0.00014783,2]
[423398257,1780084249000,-585.04,0.00014832,2]
[423398251,1780084249000,-742.65009385,0.000148,2]
[423398239,1780084249000,-716.15257786,0.000147,2]
[423398237,1780084249000,-742.65009385,0.000147,2]
[423398244,1780084249000,-162.380719,0.00014783,2]
[423398243,1780084249000,-320.38521465,0.00014783,2]
[423398264,1780084249000,-500.0,0.00014833,2]
[423398254,1780084249000,-1190.19,0.00014832,2]
[423398265,1780084249000,-910.32,0.00014833,2]
[423398266,1780084249000,-652.43,0.00014833,2]
[423398255,1780084249000,-500.0,0.00014832,2]
[423398263,1780084249000,-1164.9,0.00014833,2]
[423398258,1780084249000,-500.0,0.00014832,2]
[423398256,1780084249000,-501.53,0.00014832,2]
[423398259,1780084249000,-500.0,0.00014832,2]
[423398252,1780084249000,-716.15257786,0.000148,2]
[423398294,1780084249000,-151.0,0.00014835,2]
[423398296,1780084249000,-151.0,0.00014835,2]
[423398297,1780084249000,-654.99,0.00014835,2]
[423398325,1780084249000,-1517.97,0.00015107,2]
[423398326,1780084249000,-1401.86,0.00015107,2]
[423398329,1780084249000,-507.97,0.00015109,2]
[423398332,1780084249000,-786.17,0.00015109,2]
[423398327,1780084249000,-11644.4,0.00015107,2]
[423398330,1780084249000,-1224.6738,0.00015109,2]
[423398331,1780084249000,-1811.41,0.00015109,2]
[423398333,1780084249000,-2345.73,0.00015109,2]
[423398328,1780084249000,-1798.09,0.00015107,2]
[423398337,1780084249000,-606.57,0.00015109,2]
[423398345,1780084249000,-500.0,0.00015207,2]
[423398338,1780084249000,-495.674,0.00015121,2]
[423398339,1780084249000,-150.308,0.00015121,2]
[423398344,1780084249000,-678.0,0.00015207,2]
[423398346,1780084249000,-341.62018101,0.00015234,2]
[423398342,1780084249000,-500.0,0.00015207,2]
[423398340,1780084249000,-3081.6712361,0.00015157,32]
[423398347,1780084249000,-385.57577681,0.00015279,2]
[423398348,1780084249000,-500.0,0.00015331,2]
[423398343,1780084249000,-500.0,0.00015207,2]
[423398350,1780084249000,-414.81834356,0.00015336,2]
[423398353,1780084249000,-1190.19,0.0001538,2]
[423398354,1780084249000,-500.0,0.0001538,2]
[423398351,1780084249000,-327.43814294,0.00015336,2]
[423398349,1780084249000,-557.5788265,0.00015331,2]
[423398352,1780084249000,-672.48,0.0001538,2]
[423398293,1780084249000,-500.0,0.00014835,2]
[423398336,1780084249000,-500.0,0.00015109,2]
[423398335,1780084249000,-654.99,0.00015109,2]
[423398341,1780084249000,-500.0,0.00015207,2]
[423398324,1780084249000,-677.48,0.00015107,2]
[423398334,1780084249000,-500.0,0.00015109,2]
[423398298,1780084249000,-500.0,0.00014835,2]
[423398299,1780084249000,-606.57,0.00014835,2]
[423398300,1780084249000,-250.49255,0.00014903,2]
[423398302,1780084249000,-500.0,0.00014933,2]
[423398304,1780084249000,-678.0,0.00014933,2]
[423398306,1780084249000,-180.03780794,0.00014953,2]
[423398310,1780084249000,-672.48,0.00015106,2]
[423398309,1780084249000,-163.71907147,0.00015024,2]
[423398308,1780084249000,-500.46519074,0.00015,2]
[423398305,1780084249000,-500.0,0.00014933,2]
[423398307,1780084249000,-204.5278,0.00014972,2]
[423398301,1780084249000,-500.0,0.00014933,2]
[423398303,1780084249000,-500.0,0.00014933,2]
[423398295,1780084249000,-151.0,0.00014835,2]
[423398322,1780084249000,-652.43,0.00015107,2]
[423398313,1780084249000,-501.53,0.00015106,2]
[423398314,1780084249000,-500.0,0.00015106,2]
[423398315,1780084249000,-500.0,0.00015106,2]
[423398321,1780084249000,-910.32,0.00015107,2]
[423398317,1780084249000,-583.62,0.00015106,2]
[423398311,1780084249000,-1190.19,0.00015106,2]
[423398316,1780084249000,-733.76,0.00015106,2]
[423398323,1780084249000,-743.79,0.00015107,2]
[423398312,1780084249000,-500.0,0.00015106,2]
[423398320,1780084249000,-500.0,0.00015107,2]
[423398318,1780084249000,-1353.93,0.00015107,2]
[423398319,1780084249000,-1164.9,0.00015107,2]
[423398395,1780084250000,-501.53,0.00015653,2]
[423398392,1780084250000,-672.48,0.00015653,2]
[423398382,1780084250000,-500.0,0.00015481,2]
[423398396,1780084250000,-500.0,0.00015653,2]
[423398398,1780084250000,-583.62,0.00015653,2]
[423398388,1780084250000,-150.846,0.00015526,2]
[423398386,1780084250000,-1414.0,0.00015526,2]
[423398394,1780084250000,-500.0,0.00015653,2]
[423398390,1780084250000,-502.36861765,0.00015641,5]
[423398387,1780084250000,-1408.011,0.00015526,2]
[423398389,1780084250000,-150.342,0.00015526,2]
[423398393,1780084250000,-1190.19,0.00015653,2]
[423398397,1780084250000,-733.76,0.00015653,2]
[423398391,1780084250000,-3081.6712361,0.00015649,39]
[423398405,1780084250000,-677.48,0.00015655,2]
[423398399,1780084250000,-1353.93,0.00015655,2]
[423398401,1780084250000,-500.0,0.00015655,2]
[423398402,1780084250000,-910.32,0.00015655,2]
[423398407,1780084250000,-1401.86,0.00015655,2]
[423398403,1780084250000,-652.43,0.00015655,2]
[423398408,1780084250000,-11644.4,0.00015655,2]
[423398406,1780084250000,-1517.97,0.00015655,2]
[423398404,1780084250000,-743.79,0.00015655,2]
[423398409,1780084250000,-1798.09,0.00015655,2]
[423398410,1780084250000,-507.97,0.00015657,2]
[423398412,1780084250000,-1811.41,0.00015657,2]
[423398413,1780084250000,-786.17,0.00015657,2]
[423398400,1780084250000,-1164.9,0.00015655,2]
[423398383,1780084250000,-500.0,0.00015481,2]
[423398355,1780084250000,-501.53,0.0001538,2]
[423398381,1780084250000,-500.0,0.00015481,2]
[423398360,1780084250000,-1353.93,0.00015381,2]
[423398357,1780084250000,-243.92,0.0001538,2]
[423398361,1780084250000,-1164.9,0.00015381,2]
[423398358,1780084250000,-733.76,0.0001538,2]
[423398359,1780084250000,-583.62,0.0001538,2]
[423398362,1780084250000,-500.0,0.00015381,2]
[423398415,1780084250000,-500.0,0.00015657,2]
[423398365,1780084250000,-743.79,0.00015381,2]
[423398366,1780084250000,-677.48,0.00015381,2]
[423398364,1780084250000,-652.43,0.00015381,2]
[423398369,1780084250000,-11644.4,0.00015381,2]
[423398368,1780084250000,-1401.86,0.00015381,2]
[423398373,1780084250000,-1811.41,0.00015383,2]
[423398363,1780084250000,-910.32,0.00015381,2]
[423398367,1780084250000,-1517.97,0.00015381,2]
[423398371,1780084250000,-507.97,0.00015383,2]
[423398372,1780084250000,-1224.6738,0.00015383,2]
[423398370,1780084250000,-1798.09,0.00015381,2]
[423398374,1780084250000,-786.17,0.00015383,2]
[423398384,1780084250000,-678.0,0.00015481,2]
[423398385,1780084250000,-500.0,0.00015481,2]
[423398376,1780084250000,-500.0,0.00015383,2]
[423398375,1780084250000,-2345.73,0.00015383,2]
[423398356,1780084250000,-500.0,0.0001538,2]
[423398379,1780084250000,-606.57,0.00015383,2]
[423398377,1780084250000,-654.99,0.00015383,2]
[423398378,1780084250000,-500.0,0.00015383,2]
[423398380,1780084250000,-151.09,0.000154,2]
[423398422,1780084250000,-678.0,0.00015755,2]
[423398460,1780084250000,-162.380719,0.00016152,2]
[423398418,1780084250000,-606.57,0.00015657,2]
[423398450,1780084250000,-2345.73,0.00015931,2]
[423398458,1780084250000,-406.92,0.00016029,2]
[423398459,1780084250000,-3081.6712361,0.0001614,50]
[423398451,1780084250000,-500.0,0.00015931,2]
[423398454,1780084250000,-606.57,0.00015931,2]
[423398452,1780084250000,-654.99,0.00015931,2]
[423398456,1780084250000,-500.0,0.00016029,2]
[423398455,1780084250000,-797.0,0.00016,2]
[423398453,1780084250000,-500.0,0.00015931,2]
[423398457,1780084250000,-678.0,0.00016029,2]
[423398449,1780084250000,-786.17,0.00015931,2]
[423398461,1780084250000,-236.25114121,0.00016152,2]
[423398466,1780084250000,-733.76,0.00016201,2]
[423398463,1780084250000,-1190.19,0.00016201,2]
[423398465,1780084250000,-500.0,0.00016201,2]
[423398464,1780084250000,-501.53,0.00016201,2]
[423398462,1780084250000,-672.48,0.00016201,2]
[423398473,1780084250000,-743.79,0.00016203,2]
[423398467,1780084250000,-583.62,0.00016201,2]
[423398468,1780084250000,-1353.93,0.00016203,2]
[423398471,1780084250000,-910.32,0.00016203,2]
[423398469,1780084250000,-1164.9,0.00016203,2]
[423398470,1780084250000,-234.05,0.00016203,2]
[423398475,1780084250000,-1517.97,0.00016203,2]
[423398476,1780084250000,-1401.86,0.00016203,2]
[423398474,1780084250000,-677.48,0.00016203,2]
[423398414,1780084250000,-2345.73,0.00015657,2]
[423398447,1780084250000,-1224.6738,0.00015931,2]
[423398446,1780084250000,-507.97,0.00015931,2]
[423398472,1780084250000,-652.43,0.00016203,2]
[423398448,1780084250000,-1811.41,0.00015931,2]
[423398444,1780084250000,-11644.4,0.00015929,2]
[423398417,1780084250000,-500.0,0.00015657,2]
[423398416,1780084250000,-654.99,0.00015657,2]
[423398421,1780084250000,-197.95,0.00015755,2]
[423398419,1780084250000,-500.0,0.00015755,2]
[423398420,1780084250000,-535.1,0.00015755,2]
[423398424,1780084250000,-196.85699901,0.00015824,2]
[423398434,1780084250000,-583.62,0.00015927,2]
[423398423,1780084250000,-500.0,0.00015755,2]
[423398435,1780084250000,-1353.93,0.00015929,2]
[423398425,1780084250000,-500.0,0.00015879,2]
[423398426,1780084250000,-517.7901735,0.00015879,2]
[423398427,1780084250000,-1000.0,0.00015881,2]
[423398430,1780084250000,-180.04,0.00015927,2]
[423398411,1780084250000,-1224.6738,0.00015657,2]
[423398428,1780084250000,-672.48,0.00015927,2]
[423398433,1780084250000,-733.76,0.00015927,2]
[423398445,1780084250000,-1798.09,0.00015929,2]
[423398441,1780084250000,-677.48,0.00015929,2]
[423398437,1780084250000,-500.0,0.00015929,2]
[423398443,1780084250000,-1401.86,0.00015929,2]
[423398440,1780084250000,-743.79,0.00015929,2]
[423398442,1780084250000,-1517.97,0.00015929,2]
[423398438,1780084250000,-910.32,0.00015929,2]
[423398436,1780084250000,-1164.9,0.00015929,2]
[423398432,1780084250000,-500.0,0.00015927,2]
[423398431,1780084250000,-501.53,0.00015927,2]
[423398429,1780084250000,-1190.19,0.00015927,2]
[423398439,1780084250000,-652.43,0.00015929,2]
[423398514,1780084251000,-500.0,0.00016479,2]
[423398517,1780084251000,-606.57,0.00016479,2]
[423398518,1780084251000,-500.0,0.00016577,2]
[423398515,1780084251000,-654.99,0.00016479,2]
[423398512,1780084251000,-786.17,0.00016479,2]
[423398507,1780084251000,-11644.4,0.00016477,2]
[423398516,1780084251000,-500.0,0.00016479,2]
[423398513,1780084251000,-2345.73,0.00016479,2]
[423398508,1780084251000,-1798.09,0.00016477,2]
[423398510,1780084251000,-1224.6738,0.00016479,2]
[423398529,1780084251000,-151.0,0.00016724,2]
[423398511,1780084251000,-1811.41,0.00016479,2]
[423398519,1780084251000,-678.0,0.00016577,2]
[423398521,1780084251000,-203.73180965,0.0001663,2]
[423398520,1780084251000,-200.0,0.0001663,2]
[423398524,1780084251000,-2162.807714,0.00016724,2]
[423398523,1780084251000,-167.0,0.0001665,2]
[423398526,1780084251000,-151.0,0.00016724,2]
[423398522,1780084251000,-3081.67123619,0.00016631,69]
[423398525,1780084251000,-2162.807714,0.00016724,2]
[423398527,1780084251000,-2162.807714,0.00016724,2]
[423398530,1780084251000,-151.0,0.00016724,2]
[423398533,1780084251000,-554.175127,0.00016724,2]
[423398532,1780084251000,-554.175127,0.00016724,2]
[423398535,1780084251000,-151.0,0.00016724,2]
[423398538,1780084251000,-672.48,0.00016749,2]
[423398506,1780084251000,-1401.86,0.00016477,2]
[423398528,1780084251000,-2162.807714,0.00016724,2]
[423398505,1780084251000,-1517.97,0.00016477,2]
[423398487,1780084251000,-606.57,0.00016205,2]
[423398500,1780084251000,-1164.9,0.00016477,2]
[423398479,1780084251000,-507.97,0.00016205,2]
[423398477,1780084251000,-11644.4,0.00016203,2]
[423398478,1780084251000,-1798.09,0.00016203,2]
[423398480,1780084251000,-1224.6738,0.00016205,2]
[423398481,1780084251000,-1811.41,0.00016205,2]
[423398482,1780084251000,-786.17,0.00016205,2]
[423398483,1780084251000,-2345.73,0.00016205,2]
[423398491,1780084251000,-678.0,0.00016303,2]
[423398489,1780084251000,-151.09,0.000163,2]
[423398484,1780084251000,-500.0,0.00016205,2]
[423398485,1780084251000,-654.99,0.00016205,2]
[423398486,1780084251000,-500.0,0.00016205,2]
[423398488,1780084251000,-150.92,0.000163,2]
[423398490,1780084251000,-500.0,0.00016303,2]
[423398537,1780084251000,-151.0,0.00016724,2]
[423398493,1780084251000,-672.48,0.00016475,2]
[423398504,1780084251000,-677.48,0.00016477,2]
[423398503,1780084251000,-743.79,0.00016477,2]
[423398499,1780084251000,-1353.93,0.00016477,2]
[423398494,1780084251000,-1190.19,0.00016475,2]
[423398495,1780084251000,-501.53,0.00016475,2]
[423398492,1780084251000,-196.856999,0.00016314,2]
[423398501,1780084251000,-910.32,0.00016477,2]
[423398497,1780084251000,-733.76,0.00016475,2]
[423398496,1780084251000,-246.72,0.00016475,2]
[423398498,1780084251000,-583.62,0.00016475,2]
[423398502,1780084251000,-652.43,0.00016477,2]
[423398509,1780084251000,-507.97,0.00016479,2]
[423398539,1780084251000,-1190.19,0.00016749,2]
[423398540,1780084251000,-501.53,0.00016749,2]
[423398534,1780084251000,-554.175127,0.00016724,2]
[423398569,1780084251000,-583.62,0.00017023,2]
[423398580,1780084251000,-507.97,0.00017027,2]
[423398571,1780084251000,-1164.9,0.00017025,2]
[423398577,1780084251000,-1401.86,0.00017025,2]
[423398574,1780084251000,-743.79,0.00017025,2]
[423398575,1780084251000,-677.48,0.00017025,2]
[423398572,1780084251000,-910.32,0.00017025,2]
[423398536,1780084251000,-151.0,0.00016724,2]
[423398573,1780084251000,-652.43,0.00017025,2]
[423398576,1780084251000,-1517.97,0.00017025,2]
[423398579,1780084251000,-1798.09,0.00017025,2]
[423398582,1780084251000,-151.0,0.00017027,2]
[423398584,1780084251000,-1811.41,0.00017027,2]
[423398581,1780084251000,-151.0,0.00017027,2]
[423398583,1780084251000,-151.0,0.00017027,2]
[423398587,1780084251000,-200.61,0.00017027,2]
[423398585,1780084251000,-786.17,0.00017027,2]
[423398590,1780084251000,-606.57,0.00017027,2]
[423398589,1780084251000,-629.56,0.00017027,2]
[423398588,1780084251000,-654.99,0.00017027,2]
[423398591,1780084251000,-1150.66613794,0.000171,2]
[423398594,1780084251000,-500.0,0.00017125,2]
[423398593,1780084251000,-3302.78393611,0.00017122,87]
[423398592,1780084251000,-151.09,0.000171,2]
[423398596,1780084251000,-375.9645568,0.00017257,2]
[423398595,1780084251000,-678.0,0.00017125,2]
[423398598,1780084251000,-48786.870954,0.00017262,2]
[423398597,1780084251000,-326.1200344,0.00017257,2]
[423398586,1780084251000,-2345.73,0.00017027,2]
[423398570,1780084251000,-1353.93,0.00017025,2]
[423398578,1780084251000,-11644.4,0.00017025,2]
[423398567,1780084251000,-501.53,0.00017023,2]
[423398541,1780084251000,-733.76,0.00016749,2]
[423398542,1780084251000,-583.62,0.00016749,2]
[423398531,1780084251000,-554.175127,0.00016724,2]
[423398566,1780084251000,-1190.19,0.00017023,2]
[423398552,1780084251000,-1798.09,0.00016751,2]
[423398555,1780084251000,-786.17,0.00016753,2]
[423398553,1780084251000,-507.97,0.00016753,2]
[423398543,1780084251000,-1353.93,0.00016751,2]
[423398554,1780084251000,-1811.41,0.00016753,2]
[423398547,1780084251000,-743.79,0.00016751,2]
[423398549,1780084251000,-1517.97,0.00016751,2]
[423398546,1780084251000,-652.43,0.00016751,2]
[423398545,1780084251000,-910.32,0.00016751,2]
[423398544,1780084251000,-1164.9,0.00016751,2]
[423398550,1780084251000,-1401.86,0.00016751,2]
[423398557,1780084251000,-500.0,0.00016753,2]
[423398563,1780084251000,-500.0,0.00016851,2]
[423398560,1780084251000,-500.0,0.00016753,2]
[423398565,1780084251000,-672.48,0.00017023,2]
[423398561,1780084251000,-606.57,0.00016753,2]
[423398568,1780084251000,-733.76,0.00017023,2]
[423398564,1780084251000,-678.0,0.00016851,2]
[423398559,1780084251000,-1716.0376,0.00016753,2]
[423398558,1780084251000,-654.99,0.00016753,2]
[423398556,1780084251000,-2345.73,0.00016753,2]
[423398551,1780084251000,-11644.4,0.00016751,2]
[423398562,1780084251000,-321.70627616,0.00016758,2]
[423398548,1780084251000,-677.48,0.00016751,2]
[423398615,1780084252000,-11644.62912431,0.00017299,2]
[423398612,1780084252000,-677.66,0.00017299,2]
[423398611,1780084252000,-743.92,0.00017299,2]
[423398616,1780084252000,-1798.22818369,0.00017299,2]
[423398614,1780084252000,-1401.86048694,0.00017299,2]
[423398613,1780084252000,-1518.09318318,0.00017299,2]
[423398609,1780084252000,-910.46923767,0.00017299,2]
[423398617,1780084252000,-508.13,0.00017301,2]
[423398619,1780084252000,-786.1720391,0.00017301,2]